bitfinex/quotes_BTCUSD_20230117
["timestamp","ask_amount","ask_price","bid_price","bid_amount"]
[1673965718588,3.72799535,21326.0,21325.0,6.72882502]
[1673965718840,2.970695,21326.0,21325.0,6.72882502]
[1673965719126,2.6511,21326.0,21325.0,6.72882502]
[1673965719595,2.970695,21326.0,21325.0,6.72882502]
[1673965719844,2.6511,21326.0,21325.0,6.72882502]
[1673965720106,2.6511,21326.0,21325.0,7.03732502]
[1673965720445,2.6511,21326.0,21325.0,6.73732502]
[1673965720641,2.6511,21326.0,21325.0,7.03732502]
[1673965720899,2.6511,21326.0,21325.0,6.73732502]
[1673965721424,2.6511,21333.0,21325.0,7.03732502]
[1673965721723,3.29834985,21333.0,21326.0,0.96812595]
[1673965721921,3.29834985,21333.0,21327.0,0.19072595]
[1673965721922,0.319595,21332.0,21327.0,0.19072595]
[1673965722177,2.6511,21328.0,21327.0,0.19072595]
[1673965722433,0.319595,21328.0,21325.0,6.77871659]
[1673965722699,0.19664079,21333.0,21325.0,6.77871659]
[1673965722700,2.705653,21327.0,21325.0,6.77871659]
[1673965722955,2.6511,21327.0,21325.0,6.77871659]
[1673965723202,2.6511,21327.0,21325.0,6.72882502]
[1673965723453,2.6511,21327.0,21326.0,0.3]
[1673965723700,2.6511,21331.0,21326.0,0.768911]
[1673965723947,0.96043906,21331.0,21326.0,0.65963695]
[1673965724189,0.319595,21330.0,21326.0,0.65963695]
[1673965724469,0.53175469,21329.0,21326.0,0.04914003]
[1673965724723,0.79679669,21328.0,21326.0,0.04914003]
[1673965724975,0.054553,21327.0,21326.0,0.04914003]
[1673965725230,0.054553,21327.0,21325.0,6.72882502]
[1673965725503,0.314595,21326.0,21325.0,6.72882502]
[1673965725755,2.965695,21326.0,21325.0,6.72882502]
[1673965726836,2.6511,21326.0,21325.0,6.73732502]
[1673965727350,2.6511,21326.0,21325.0,6.72882502]
[1673965727613,2.970673,21326.0,21325.0,6.72882502]
[1673965728347,3.74494199,21326.0,21325.0,5.80532107]
[1673965728859,3.44787469,21326.0,21325.0,5.80532107]
[1673965729111,2.970673,21326.0,21325.0,5.80532107]
[1673965729376,3.44787469,21326.0,21325.0,5.80532107]
[1673965730430,3.44787469,21326.0,21325.0,4.89962107]
[1673965730431,4.23346267,21326.0,21325.0,4.89962107]
[1673965730699,3.44787469,21326.0,21325.0,3.46476711]
[1673965731464,2.970673,21326.0,21325.0,3.46476711]
[1673965731722,2.970673,21326.0,21325.0,3.95549306]
[1673965732065,2.970673,21326.0,21325.0,3.46476711]
[1673965732066,2.6511,21326.0,21325.0,3.46476711]
[1673965732245,2.6511,21326.0,21325.0,3.76476711]
[1673965732497,2.6511,21326.0,21325.0,3.46476711]
[1673965732754,2.6511,21326.0,21325.0,3.77326711]
[1673965733291,0.17004816,21326.0,21325.0,3.46476711]
[1673965733542,0.319573,21326.0,21325.0,3.46476711]
[1673965733797,0.82873199,21326.0,21325.0,3.46476711]
[1673965734074,3.44787469,21326.0,21325.0,3.46476711]
[1673965734333,2.970673,21326.0,21325.0,3.46476711]
[1673965735077,3.44787469,21326.0,21325.0,3.46476711]
[1673965736619,2.970673,21326.0,21325.0,3.46476711]
[1673965737142,2.6511,21326.0,21325.0,3.46476711]
[1673965737655,0.319573,21326.0,21325.0,3.46476711]
[1673965738666,0.4587665,21332.0,21325.0,3.47326711]
[1673965738667,0.49058412,21332.0,21325.0,3.47326711]
[1673965738914,0.47720169,21332.0,21326.0,0.49922595]
[1673965739177,0.319573,21331.0,21327.0,0.65961395]
[1673965739429,0.319573,21331.0,21327.0,0.468888]
[1673965739430,0.049579,21330.0,21327.0,0.468888]
[1673965739799,0.319573,21329.0,21326.0,0.04946211]
[1673965740198,0.52678069,21328.0,21326.0,0.04946211]
[1673965740460,0.79677469,21327.0,21326.0,0.04946211]
[1673965740748,3.44787469,21327.0,21325.0,3.46476711]
[1673965741026,0.67678069,21326.0,21325.0,3.46476711]
[1673965741527,3.32788069,21326.0,21325.0,3.46476711]
[1673965742294,3.17788069,21326.0,21325.0,3.46476711]
[1673965743045,3.30897935,21326.0,21325.0,3.46476711]
[1673965743306,3.50562014,21326.0,21325.0,3.46476711]
[1673965743597,3.30897935,21326.0,21325.0,3.46476711]
[1673965743815,3.89406744,21326.0,21325.0,3.46476711]
[1673965744093,4.92509449,21326.0,21325.0,2.35638634]
[1673965744340,6.48496079,21326.0,21325.0,0.93492228]
[1673965744595,0.35,21325.0,21323.0,0.04777156]
[1673965744884,1.87515918,21324.0,21323.0,0.04777156]
[1673965745090,1.87515918,21324.0,21317.0,0.01242331]
[1673965745091,1.28612028,21324.0,21317.0,0.01242331]
[1673965745337,1.28612028,21324.0,21317.0,0.48151831]
[1673965745338,0.69682885,21323.0,21317.0,0.48151831]
[1673965745602,0.96682285,21322.0,21317.0,0.48151831]
[1673965745873,0.79351114,21321.0,21317.0,0.06062917]
[1673965746148,0.96682285,21320.0,21317.0,0.06062917]
[1673965746398,0.69682885,21319.0,21317.0,0.06062917]
[1673965746685,0.79677469,21318.0,21317.0,0.01242331]
[1673965746955,1.03133469,21318.0,21317.0,0.01242331]
[1673965747205,2.13978245,21318.0,21317.0,0.01242331]
[1673965747707,4.79129906,21318.0,21317.0,0.01242331]
[1673965747711,4.44142867,21318.0,21317.0,0.01242331]
[1673965747964,4.31719689,21318.0,21317.0,0.01242331]
[1673965748226,4.31719689,21318.0,21317.0,0.01232331]
[1673965748227,3.44287469,21318.0,21317.0,0.01232331]
[1673965748743,3.67742469,21318.0,21317.0,0.01232331]
[1673965749002,4.32715381,21318.0,21317.0,0.0069462]
[1673965749265,4.64099629,21318.0,21317.0,0.0069462]
[1673965749508,4.29132061,21318.0,21317.0,0.0069462]
[1673965749780,3.44287469,21318.0,21317.0,0.0069462]
[1673965750082,3.74287469,21318.0,21317.0,0.0069462]
[1673965750330,3.44287469,21318.0,21317.0,0.0069462]
[1673965750582,3.88266844,21318.0,21317.0,0.0069462]
[1673965750847,4.95116226,21318.0,21317.0,0.0069462]
[1673965751107,4.95116418,21318.0,21317.0,0.0069462]
[1673965751409,4.94099629,21318.0,21317.0,0.0069462]
[1673965751689,3.74287469,21318.0,21317.0,0.0069462]
[1673965751942,4.47695867,21318.0,21317.0,0.0069462]
[1673965752196,4.11711702,21318.0,21317.0,0.0069462]
[1673965752452,0.15,21317.0,21316.0,9.51e-06]
[1673965752725,0.15,21317.0,21314.0,0.01296001]
[1673965752726,0.017237,21315.0,21314.0,1e-08]
[1673965752976,3.03414183,21315.0,21314.0,1e-08]
[1673965753237,5.5556309,21315.0,21314.0,1e-08]
[1673965753496,6.80862594,21315.0,21314.0,1e-08]
[1673965753757,6.80862594,21315.0,21313.0,4.38e-06]
[1673965753758,0.15,21314.0,21313.0,4.38e-06]
[1673965754070,0.15,21314.0,21309.0,0.01260132]
[1673965754071,0.01032917,21310.0,21309.0,0.01260132]
[1673965754320,0.01032917,21310.0,21299.0,0.14538]
[1673965754321,5.12315033,21310.0,21294.0,0.02482673]
[1673965754576,0.71199169,21296.0,21294.0,0.21555268]
[1673965754836,0.96682285,21295.0,21294.0,0.02482673]
[1673965755103,0.48962116,21295.0,21294.0,0.23440673]
[1673965755658,0.48962116,21295.0,21294.0,0.13038673]
[1673965755659,0.17004816,21295.0,21294.0,0.13038673]
[1673965755662,0.17004816,21295.0,21294.0,0.02482673]
[1673965755663,0.69621197,21295.0,21294.0,0.02482673]
[1673965755907,0.96682285,21295.0,21294.0,0.02482673]
[1673965756167,0.96682285,21295.0,21294.0,0.23440673]
[1673965756168,0.319573,21295.0,21294.0,0.23440673]
[1673965756428,0.04815885,21299.0,21294.0,0.42513268]
[1673965756694,0.04815885,21299.0,21295.0,1.44946295]
[1673965756961,0.49642042,21303.0,21296.0,0.319573]
[1673965757218,0.49642042,21303.0,21294.0,0.26258173]
[1673965757219,0.23479,21297.0,21294.0,0.02482673]
[1673965757473,0.39509517,21296.0,21294.0,0.02482673]
[1673965757748,0.319573,21295.0,21294.0,0.02482673]
[1673965758007,1.7355459,21295.0,21294.0,0.02482673]
[1673965758264,2.67374414,21295.0,21294.0,6.73e-06]
[1673965758517,2.21274759,21295.0,21294.0,6.73e-06]
[1673965759031,1.24677469,21295.0,21294.0,6.73e-06]
[1673965759342,0.79677469,21295.0,21294.0,6.73e-06]
[1673965759563,1.09677469,21295.0,21294.0,6.73e-06]
[1673965759819,0.15,21294.0,21288.0,1e-08]
[1673965760075,0.47720169,21291.0,21288.0,1e-08]
[1673965760348,0.79677469,21290.0,21288.0,1e-08]
[1673965760846,2.59682885,21289.0,21288.0,1e-08]
[1673965761100,2.59682885,21289.0,21285.0,9.91e-06]
[1673965761101,5.999e-05,21287.0,21285.0,9.91e-06]
[1673965761368,0.554473,21286.0,21285.0,9.91e-06]
[1673965761653,1.26393097,21286.0,21285.0,9.91e-06]
[1673965761932,0.79677469,21286.0,21285.0,9.91e-06]
[1673965762175,0.319573,21286.0,21285.0,9.91e-06]
[1673965762427,3.44787469,21286.0,21285.0,9.91e-06]
[1673965762959,2.970673,21286.0,21285.0,0.19073586]
[1673965763429,2.970673,21286.0,21285.0,9.91e-06]
[1673965763947,2.970673,21286.0,21285.0,1.37832391]
[1673965763948,2.6511,21286.0,21285.0,1.37832391]
[1673965764220,0.04881642,21290.0,21285.0,1.37832391]
[1673965764221,0.04881642,21290.0,21286.0,0.15]
[1673965764487,0.67431642,21290.0,21289.0,0.6]
[1673965764742,0.49735644,21300.0,21289.0,3.03193553]
[1673965765006,5.49163568,21301.0,21293.0,0.6]
[1673965765264,5.49163568,21301.0,21295.0,0.939174]
[1673965765265,5.0,21301.0,21295.0,0.939174]
[1673965765509,5.0,21301.0,21296.0,0.79072595]
[1673965765871,5.0,21301.0,21295.0,0.939174]
[1673965765872,5.04995741,21301.0,21297.0,0.14072595]
[1673965766117,5.04995741,21301.0,21295.0,0.46959]
[1673965766118,0.319573,21300.0,21298.0,0.478023]
[1673965766378,5.04995741,21301.0,21298.0,0.478023]
[1673965766641,5.04995741,21301.0,21298.0,0.52770711]
[1673965766642,1.93055741,21301.0,21298.0,0.52770711]
[1673965766897,1.92955741,21301.0,21299.0,0.619573]
[1673965767326,1.92955741,21301.0,21300.0,1.258539]
[1673965767327,1.87955741,21301.0,21300.0,1.258539]
[1673965767593,1.8296,21301.0,21300.0,1.558539]
[1673965767849,1.577804,21301.0,21300.0,1.558539]
[1673965768097,1.577804,21301.0,21300.0,1.567039]
[1673965768359,1.20780721,21301.0,21300.0,1.567039]
[1673965768611,0.05551126,21304.0,21300.0,2.19424069]
[1673965768866,0.01032917,21310.0,21303.0,0.6]
[1673965769140,0.01032917,21310.0,21308.0,0.6]
[1673965769441,0.01032917,21310.0,21309.0,1.258143]
[1673965769697,0.01032917,21310.0,21309.0,0.788858]
[1673965769964,0.01032917,21310.0,21309.0,0.469285]
[1673965770219,0.01032917,21310.0,21309.0,0.477785]
[1673965770482,0.01032917,21310.0,21309.0,0.797358]
[1673965770739,0.01817184,21310.0,21309.0,0.797358]
[1673965771261,0.01817184,21310.0,21309.0,0.469285]
[1673965771262,0.31445779,21310.0,21309.0,0.469285]
[1673965771269,0.31445779,21310.0,21305.0,0.04837928]
[1673965771270,0.92423169,21308.0,21305.0,0.04837928]
[1673965771512,0.24030395,21307.0,21305.0,0.04837928]
[1673965771770,0.24030395,21307.0,21303.0,0.469398]
[1673965771771,0.319573,21306.0,21303.0,0.469398]
[1673965772043,0.19072595,21307.0,21301.0,0.04887849]
[1673965772044,0.71750664,21305.0,21301.0,0.04887849]
[1673965772322,1.47672674,21304.0,21301.0,0.04887849]
[1673965772556,1.47672674,21304.0,21296.0,0.469563]
[1673965772557,0.86750664,21303.0,21296.0,0.469563]
[1673965772810,0.99952505,21302.0,21299.0,0.469505]
[1673965773065,0.99952505,21302.0,21297.0,0.469531]
[1673965773066,0.19072595,21302.0,21297.0,0.469531]
[1673965773322,0.19072595,21302.0,21296.0,0.51858357]
[1673965773323,0.98750064,21301.0,21296.0,0.04902057]
[1673965773625,0.98750064,21301.0,21293.0,0.46864157]
[1673965773626,0.15,21299.0,21293.0,0.46864157]
[1673965773847,1.4747757,21298.0,21291.0,0.469676]
[1673965774131,1.2047817,21297.0,21289.0,0.46972]
[1673965774394,1.2047817,21297.0,21286.0,0.469787]
[1673965774395,1.4747757,21296.0,21286.0,0.469787]
[1673965774663,0.44747757,21297.0,21286.0,0.469787]
[1673965774664,1.3547817,21295.0,21286.0,0.469787]
[1673965774951,1.4747757,21294.0,21286.0,0.469787]
[1673965775211,0.33022593,21295.0,21285.0,0.46980891]
[1673965775212,1.2047817,21293.0,21285.0,0.46980891]
[1673965775466,1.4747757,21292.0,21285.0,9.91e-06]
[1673965775715,0.39030495,21291.0,21285.0,0.46980491]
[1673965775972,0.19072595,21291.0,21286.0,0.09396219]
[1673965776272,0.19072595,21291.0,21287.0,1.259091]
[1673965776531,0.04801264,21291.0,21288.0,0.319573]
[1673965776845,0.04801264,21291.0,21287.0,0.939518]
[1673965777108,0.66792764,21291.0,21285.0,9.91e-06]
[1673965777368,0.51029895,21290.0,21285.0,9.91e-06]
[1673965777655,0.86750664,21289.0,21285.0,9.91e-06]
[1673965777930,1.4747757,21288.0,21285.0,9.91e-06]
[1673965778199,1.4396717,21287.0,21285.0,9.91e-06]
[1673965778463,0.79677469,21286.0,21285.0,9.91e-06]
[1673965778727,0.319573,21286.0,21285.0,9.91e-06]
[1673965779217,0.04769167,21291.0,21285.0,9.91e-06]
[1673965779460,0.04769167,21291.0,21286.0,0.319573]
[1673965779461,6e-05,21289.0,21286.0,0.319573]
[1673965779716,6e-05,21289.0,21287.0,1.259113]
[1673965779988,6e-05,21289.0,21285.0,0.46982391]
[1673965779989,0.29634595,21289.0,21288.0,0.319573]
[1673965780229,6e-05,21289.0,21285.0,9.91e-06]
[1673965780501,0.19072595,21288.0,21285.0,9.91e-06]
[1673965780767,0.319573,21287.0,21285.0,9.91e-06]
[1673965781023,0.049579,21286.0,21285.0,9.91e-06]
[1673965781291,6e-05,21289.0,21285.0,9.91e-06]
[1673965781778,0.47720169,21288.0,21285.0,9.91e-06]
[1673965782033,6e-05,21289.0,21285.0,9.91e-06]
[1673965782034,0.049578,21287.0,21285.0,9.91e-06]
[1673965782302,6e-05,21289.0,21286.0,0.469792]
[1673965782862,6e-05,21289.0,21287.0,0.3]
[1673965783105,6e-05,21289.0,21288.0,1.259069]
[1673965783376,6e-05,21289.0,21288.0,1.567569]
[1673965783644,6e-05,21289.0,21288.0,1.09774109]
[1673965783645,0.19072595,21289.0,21288.0,1.09774109]
[1673965783915,0.19072595,21289.0,21285.0,0.46980291]
[1673965783916,1.11029916,21286.0,21285.0,9.91e-06]
[1673965784189,1.5982128,21286.0,21285.0,9.91e-06]
[1673965784457,1.8331328,21286.0,21285.0,9.91e-06]
[1673965784728,1.40748685,21286.0,21285.0,9.91e-06]
[1673965785001,0.93028516,21286.0,21285.0,9.91e-06]
[1673965786065,1.93028516,21286.0,21285.0,9.91e-06]
[1673965786585,2.93028516,21286.0,21285.0,9.91e-06]
[1673965787920,2.93028516,21286.0,21285.0,0.46982391]
[1673965787921,2.61029916,21286.0,21285.0,0.46982391]
[1673965788458,1.29538882,21287.0,21285.0,1.3970256]
[1673965788719,1.05965582,21287.0,21286.0,0.778486]
[1673965788977,0.47429382,21287.0,21286.0,1.72547969]
[1673965789252,0.049363,21290.0,21287.0,0.15]
[1673965789544,0.049363,21290.0,21288.0,1.259482]
[1673965789817,0.00732887,21295.0,21289.0,0.319986]
[1673965790107,0.00732887,21295.0,21288.0,0.0085]
[1673965790360,0.00732887,21295.0,21288.0,0.469732]
[1673965790361,0.319986,21294.0,21288.0,0.469732]
[1673965790619,0.319986,21294.0,21289.0,0.0085]
[1673965790620,0.319986,21293.0,21289.0,0.0085]
[1673965790887,0.15732887,21295.0,21289.0,0.0085]
[1673965790888,0.65038939,21295.0,21289.0,0.0085]
[1673965791154,0.34805482,21295.0,21289.0,0.0085]
[1673965791410,0.319986,21294.0,21289.0,0.1032984]
[1673965791671,0.319986,21293.0,21289.0,0.0085]
[1673965791928,0.319986,21293.0,21286.0,0.613822]
[1673965791929,0.319986,21292.0,21286.0,0.469792]
[1673965792236,0.319986,21292.0,21285.0,0.61385291]
[1673965792237,1.48097416,21291.0,21285.0,9.91e-06]
[1673965792499,1.15377247,21290.0,21285.0,9.91e-06]
[1673965792772,1.00377247,21289.0,21285.0,9.91e-06]
[1673965793039,0.319986,21288.0,21285.0,9.91e-06]
[1673965793318,0.47720169,21291.0,21285.0,0.46980591]
[1673965793319,0.47414254,21291.0,21285.0,0.46980591]
[1673965793793,0.00732887,21295.0,21286.0,0.319986]
[1673965793794,0.15,21293.0,21286.0,0.319986]
[1673965793802,0.04895728,21290.0,21286.0,0.319986]
[1673965794050,0.04895728,21290.0,21288.0,0.469746]
[1673965794307,0.19805482,21295.0,21289.0,0.0085]
[1673965794308,0.15,21294.0,21289.0,0.0085]
[1673965794557,0.19805482,21295.0,21288.0,0.478231]
[1673965794558,0.00732887,21295.0,21288.0,0.478231]
[1673965794809,0.19805482,21295.0,21288.0,0.478231]
[1673965795073,0.19072595,21294.0,21288.0,0.478231]
[1673965795320,0.66071195,21293.0,21288.0,0.0085]
[1673965795574,1.48097416,21292.0,21285.0,9.91e-06]
[1673965795832,1.64407158,21291.0,21285.0,9.91e-06]
[1673965796076,0.319986,21290.0,21285.0,9.91e-06]
[1673965796358,0.19072595,21291.0,21285.0,0.46980591]
[1673965796614,0.00732887,21295.0,21286.0,0.319986]
[1673965796855,0.04761193,21290.0,21288.0,1.409208]
[1673965797105,0.19805482,21295.0,21289.0,0.619986]
[1673965797424,0.19805482,21295.0,21290.0,1.91717223]
[1673965797425,0.00732887,21295.0,21290.0,1.91717223]
[1673965797630,0.00732887,21295.0,21291.0,0.628486]
[1673965797884,0.05632864,21295.0,21292.0,0.319986]
[1673965798141,0.00732887,21295.0,21293.0,0.328486]
[1673965798402,0.47720169,21294.0,21290.0,0.50781723]
[1673965798663,0.98787364,21293.0,21290.0,0.03812823]
[1673965798886,0.00732887,21295.0,21290.0,0.03812823]
[1673965798887,0.319946,21292.0,21290.0,0.03812823]
[1673965799143,0.15,21293.0,21290.0,0.03812823]
[1673965799388,0.47720169,21291.0,21290.0,0.03812823]
[1673965799642,1.28874655,21291.0,21290.0,0.03812823]
[1673965799892,0.319946,21291.0,21290.0,0.03812823]
[1673965800402,0.79714769,21291.0,21290.0,0.03812823]
[1673965800652,0.319946,21291.0,21290.0,0.03812823]
[1673965801235,0.54720182,21295.0,21290.0,0.03812823]
[1673965801456,0.05560296,21295.0,21290.0,0.03812823]
[1673965801969,0.319946,21294.0,21290.0,0.03812823]
[1673965802226,0.19072595,21294.0,21291.0,0.0085]
[1673965802563,0.05560296,21295.0,21291.0,0.08163122]
[1673965802750,0.05560296,21295.0,21292.0,0.328446]
[1673965803004,0.05560296,21295.0,21293.0,0.319946]
[1673965803266,0.00736153,21299.0,21294.0,0.319946]
[1673965803540,0.00736153,21299.0,21293.0,0.3]
[1673965803541,0.19072595,21298.0,21295.0,1.25911]
[1673965803793,0.66792764,21298.0,21290.0,0.55682089]
[1673965804062,0.47720169,21296.0,21290.0,0.03812823]
[1673965804324,0.469946,21295.0,21293.0,0.04894406]
[1673965804580,0.469946,21295.0,21290.0,0.50782523]
[1673965804581,0.319946,21294.0,21290.0,0.50782523]
[1673965804850,0.319946,21293.0,21290.0,0.03812823]
[1673965805141,0.319946,21292.0,21290.0,0.03812823]
[1673965805411,0.319946,21291.0,21290.0,0.03812823]
[1673965805678,0.43460437,21298.0,21290.0,0.61183523]
[1673965805930,0.43460437,21298.0,21291.0,0.319946]
[1673965805931,0.19072595,21298.0,21291.0,0.319946]
[1673965806197,0.00736153,21299.0,21293.0,0.469635]
[1673965806488,0.00736153,21299.0,21290.0,0.08781118]
[1673965806489,0.47720169,21297.0,21290.0,0.08781118]
[1673965806742,0.47720169,21297.0,21290.0,0.02672823]
[1673965806743,0.23483,21292.0,21290.0,0.02672823]
[1673965806996,0.319946,21291.0,21290.0,0.02672823]
[1673965807241,0.15,21290.0,21285.0,9.91e-06]
[1673965807498,1.47537516,21289.0,21285.0,9.91e-06]
[1673965807801,1.47537516,21288.0,21285.0,9.91e-06]
[1673965808059,0.319946,21287.0,21285.0,9.91e-06]
[1673965808308,0.19072595,21288.0,21285.0,9.91e-06]
[1673965808562,0.66792764,21287.0,21285.0,9.91e-06]
[1673965808816,0.319946,21286.0,21285.0,9.91e-06]
[1673965809621,1.01986824,21286.0,21285.0,9.91e-06]
[1673965809875,0.82914229,21286.0,21285.0,9.91e-06]
[1673965810154,1.28464921,21286.0,21285.0,9.91e-06]
[1673965810730,1.51955921,21286.0,21285.0,9.91e-06]
[1673965810998,1.28464921,21286.0,21285.0,9.91e-06]
[1673965811252,0.319946,21286.0,21285.0,9.91e-06]
[1673965811504,0.319946,21286.0,21283.0,0.01292662]
[1673965811779,0.319946,21285.0,21283.0,0.01292662]
[1673965812048,0.319946,21284.0,21283.0,0.01292662]
[1673965812305,0.319946,21284.0,21281.0,0.01434597]
[1673965812306,0.11292,21283.0,21277.0,0.01366104]
[1673965812562,0.21043153,21279.0,21277.0,0.01366104]
[1673965812816,0.80360838,21278.0,21277.0,0.01366104]
[1673965813347,1.38913394,21278.0,21277.0,0.01366104]
[1673965813353,1.4912416,21278.0,21277.0,0.01366104]
[1673965813626,1.4912416,21278.0,21275.0,0.04683994]
[1673965813627,3.47766771,21278.0,21275.0,0.04683994]
[1673965813884,1.06246432,21276.0,21271.0,0.00723105]
[1673965814151,0.23507,21272.0,21271.0,0.00723105]
[1673965814419,1.70444842,21272.0,21263.0,0.14394105]
[1673965814687,1.16262157,21271.0,21263.0,0.14394105]
[1673965814955,1.16262157,21271.0,21261.0,0.14681]
[1673965814956,0.80145078,21270.0,21260.0,0.470365]
[1673965815228,0.51117079,21271.0,21259.0,0.47038]
[1673965815229,1.46937842,21269.0,21259.0,0.47038]
[1673965815484,1.46957342,21268.0,21259.0,0.440727]
[1673965815758,0.99237173,21267.0,21259.0,0.440727]
[1673965816012,0.48169978,21266.0,21259.0,0.526841]
[1673965816277,0.19072595,21265.0,21259.0,0.526841]
[1673965816530,0.04848079,21268.0,21260.0,0.319946]
[1673965816531,0.19072595,21264.0,21260.0,0.319946]
[1673965816810,0.53018057,21268.0,21260.0,0.319946]
[1673965816811,0.19072595,21263.0,21261.0,0.319946]
[1673965817103,0.19072595,21263.0,21260.0,0.15]
[1673965817359,0.04826467,21265.0,21260.0,0.145]
[1673965817360,0.19072595,21262.0,21260.0,0.145]
[1673965817652,0.19072595,21262.0,21258.0,0.470393]
[1673965817916,0.19072595,21262.0,21259.0,0.470367]
[1673965817917,0.19072595,21261.0,21259.0,0.470367]
[1673965818170,0.19072595,21262.0,21259.0,0.470373]
[1673965818669,0.19072595,21262.0,21257.0,0.470426]
[1673965818670,0.19072595,21261.0,21257.0,0.470426]
[1673965818678,0.66792764,21262.0,21255.0,0.51859811]
[1673965818920,0.80164578,21261.0,21255.0,0.04813411]
[1673965819183,0.2352,21259.0,21255.0,0.04813411]
[1673965819457,0.52336406,21263.0,21255.0,0.04813411]
[1673965819458,0.51067195,21258.0,21255.0,0.04813411]
[1673965819704,0.319946,21257.0,21255.0,0.04313411]
[1673965819967,0.319946,21256.0,21255.0,0.04313411]
[1673965820495,0.77214769,21256.0,21255.0,0.04313411]
[1673965820762,0.77214769,21256.0,21250.0,0.0015]
[1673965820763,1.10229435,21256.0,21250.0,0.0015]
[1673965821054,0.23521,21258.0,21250.0,0.0015]
[1673965821055,0.23528,21252.0,21250.0,0.0015]
[1673965821334,0.66792764,21251.0,21250.0,0.0015]
[1673965821585,0.98817064,21251.0,21244.0,0.00353047]
[1673965821846,0.98817064,21251.0,21236.0,0.04789579]
[1673965821847,0.71261169,21245.0,21236.0,0.04789579]
[1673965822110,0.00351504,21248.0,21236.0,0.04789579]
[1673965822111,0.2354,21241.0,21236.0,0.04789579]
[1673965822387,0.19072595,21240.0,21236.0,0.04789579]
[1673965822640,0.25751871,21239.0,21236.0,9.579e-05]
[1673965822900,0.23541,21240.0,21236.0,9.579e-05]
[1673965822901,0.19072595,21240.0,21236.0,9.579e-05]
[1673965823284,0.44053255,21247.0,21237.0,0.320243]
[1673965823288,0.44053255,21247.0,21237.0,0.31418781]
[1673965823289,0.67587255,21247.0,21237.0,0.31418781]
[1673965823532,0.04836274,21241.0,21237.0,0.00904836]
[1673965823834,0.320327,21240.0,21237.0,0.00404836]
[1673965824100,0.320327,21240.0,21232.0,0.470972]
[1673965824101,0.00894083,21235.0,21216.0,0.05072245]
[1673965824360,0.19072595,21230.0,21216.0,0.05072245]
[1673965824616,0.19072595,21230.0,21205.0,0.33669057]
[1673965824617,0.22420566,21217.0,21201.0,0.60679923]
[1673965824952,2.859,21226.0,21208.0,15.0]
[1673965824953,0.1729,21224.0,21208.0,15.0]
[1673965825128,0.1729,21224.0,21203.0,0.6]
[1673965825129,0.47720169,21222.0,21209.0,0.77010926]
[1673965825387,0.1716,21238.0,21212.0,0.6]
[1673965825388,0.47720169,21217.0,21212.0,0.6]
[1673965825645,1.20856421,21225.0,21213.0,0.320327]
[1673965825893,0.2826,21226.0,21222.0,0.6]
[1673965826139,0.2826,21226.0,21213.0,0.7]
[1673965826140,0.04842026,21225.0,21223.0,0.320327]
[1673965826410,0.46629764,21230.0,21224.0,0.04978226]
[1673965826662,1.40856421,21246.0,21227.0,0.6]
[1673965826906,1.40856421,21246.0,21225.0,0.00497823]
[1673965826907,0.00497823,21245.0,21231.0,0.59502177]
[1673965827166,0.00497823,21245.0,21232.0,0.620327]
[1673965827167,1.05497823,21245.0,21232.0,0.620327]
[1673965827436,0.00351504,21248.0,21232.0,0.620327]
[1673965827437,8.7e-07,21235.0,21233.0,1.31772435]
[1673965827673,0.46446714,21244.0,21233.0,1.31772435]
[1673965827674,0.2826,21243.0,21234.0,1.31758338]
[1673965827925,0.00351504,21248.0,21236.0,0.470882]
[1673965827926,0.04977908,21244.0,21236.0,0.470882]
[1673965828184,1.05497823,21237.0,21235.0,0.03978226]
[1673965828441,0.19977908,21244.0,21236.0,0.470898]
[1673965828959,1.0,21237.0,21234.0,0.0085]
[1673965828965,1.0,21237.0,21228.0,0.47107]
[1673965828966,0.05497823,21237.0,21229.0,0.45764388]
[1673965829234,0.05497823,21232.0,21228.0,0.471062]
[1673965829482,0.05497823,21232.0,21226.0,0.15]
[1673965829483,0.05497823,21229.0,21226.0,0.15]
[1673965829754,0.65497823,21229.0,21226.0,0.15]
[1673965830011,0.320371,21228.0,21226.0,0.15]
[1673965830260,0.320371,21227.0,21217.0,0.15]
[1673965830531,0.05497823,21220.0,21217.0,0.15]
[1673965830778,0.05497823,21220.0,21217.0,3.20022019]
[1673965830779,0.51109695,21219.0,21217.0,3.20022019]
[1673965831026,0.51109695,21219.0,21209.0,1.0]
[1673965831027,2.50357764,21218.0,21209.0,1.0]
[1673965831325,0.05497823,21210.0,21209.0,1.0]
[1673965831574,0.82846587,21210.0,21209.0,200.0]
[1673965831867,0.2357,21214.0,21205.0,0.14097]
[1673965831868,0.4067761,21213.0,21205.0,0.14097]
[1673965832120,0.04883955,21214.0,21205.0,0.14097]
[1673965832121,0.19072595,21212.0,21209.0,5.0]
[1673965832387,0.04883955,21214.0,21210.0,0.320512]
[1673965832715,0.04883955,21214.0,21211.0,0.03978227]
[1673965832895,0.04883955,21214.0,21212.0,0.03978227]
[1673965833145,0.04883955,21214.0,21213.0,0.320512]
[1673965833402,0.05497823,21224.0,21213.0,0.40732332]
[1673965833650,0.15,21224.0,21214.0,0.83749596]
[1673965834011,0.15,21224.0,21216.0,0.937677]
[1673965834174,0.15,21227.0,21219.0,0.47720169]
[1673965834434,0.15,21227.0,21220.0,1.13749596]
[1673965834690,0.20497823,21233.0,21222.0,0.47720169]
[1673965834945,0.20497823,21233.0,21226.0,0.47720169]
[1673965835205,0.20497823,21233.0,21228.0,0.942146]
[1673965835206,0.15,21233.0,21228.0,0.942146]
[1673965835444,0.05497823,21232.0,21229.0,1.14599596]
[1673965835700,0.05497823,21232.0,21230.0,0.79771369]
[1673965835962,0.05497823,21232.0,21226.0,0.04947652]
[1673965835963,1.04911226,21229.0,21226.0,0.04947652]
[1673965836213,0.05497823,21227.0,21226.0,0.04947652]
[1673965836501,0.56621618,21227.0,21219.0,0.471274]
[1673965836717,0.05497823,21222.0,21218.0,0.471282]
[1673965836976,0.00536798,21223.0,21216.0,0.466335]
[1673965836977,0.05497823,21219.0,21216.0,0.466335]
[1673965837234,0.05497823,21219.0,21215.0,0.15]
[1673965837235,0.19072595,21218.0,21215.0,0.15]
[1673965837499,0.19072595,21218.0,21216.0,0.47720169]
[1673965837772,0.00536798,21223.0,21215.0,0.15]
[1673965837773,0.04990777,21220.0,21218.0,0.15]
[1673965838061,0.04990777,21220.0,21219.0,1.74024169]
[1673965838328,0.05497823,21220.0,21219.0,4.26304]
[1673965838594,0.05497823,21220.0,21219.0,0.36754105]
[1673965838856,0.05497823,21220.0,21218.0,0.621296]
[1673965839296,0.05497823,21220.0,21218.0,0.15]